[Event "NJSK 2023 Jeugd A"]
[Site "Almelo, Netherlands"]
[Date "2023.04.30"]
[Round "1.1"]
[White "De Winter, Arthur"]
[Black "Alvares, Thomas"]
[Result "1/2-1/2"]
[TimeControl "90min/40moves + 30min + 30sec/move"]
[WhiteElo "2374"]
[BlackElo "1825"]

1. e4 {[%emt 03:17:45]} c5 {[%clk 01:30:54]} 2. Nf3 {[%clk 01:31:26]} {[%emt
00:00:03]} d6 {[%emt 00:00:11]} 3. d4 {[%clk 01:31:53]} cxd4 {[%clk 01:31:40]}
{[%emt 00:00:05]} 4. Nxd4 {[%clk 01:32:19]} {[%emt 00:00:03]} Nf6 {[%clk
01:32:02]} {[%emt 00:00:09]} 5. Nc3 {[%clk 01:32:45]} {[%emt 00:00:03]} a6
{[%clk 01:32:25]} {[%emt 00:00:07]} 6. Bd3 {[%clk 01:33:09]} {[%emt 00:00:07]}
e5 {[%clk 01:30:13]} {[%emt 00:02:41]} 7. Nde2 {[%clk 01:33:34]} {[%emt
00:00:06]} Be7 {[%clk 01:30:29]} {[%emt 00:00:14]} 8. O-O {[%clk 01:33:59]}
{[%emt 00:00:04]} Nbd7 {[%clk 01:25:49]} {[%emt 00:05:10]} 9. Ng3 {[%clk
01:31:52]} {[%emt 00:02:38]} Nc5 {[%clk 01:24:03]} {[%emt 00:02:15]} 10. Be2
{[%clk 01:26:13]} {[%emt 00:06:10]} Be6 {[%clk 01:16:34]} {[%emt 00:07:58]} 11.
b4 {[%clk 01:21:48]} {[%emt 00:04:56]} Ncd7 {[%clk 01:15:52]} {[%emt 00:01:12]}
12. Nf5 {[%clk 01:20:25]} {[%emt 00:01:53]} Bxf5 {[%clk 01:14:44]} {[%emt
00:01:38]} 13. exf5 {[%clk 01:20:51]} {[%emt 00:00:03]} Qc7 {[%clk 01:13:42]}
{[%emt 00:01:33]} 14. Qd3 {[%clk 01:15:07]} {[%emt 00:06:14]} Rc8 {[%clk
01:09:15]} {[%emt 00:04:57]} 15. Bd2 {[%clk 01:15:13]} {[%emt 00:00:24]} Nb6
{[%clk 01:07:11]} {[%emt 00:02:34]} 16. a4 {[%clk 00:54:35]} {[%emt 00:21:08]}
Nc4 {[%clk 00:58:45]} {[%emt 00:08:55]} 17. Be1 {[%clk 00:53:43]} {[%emt
00:01:22]} O-O {[%clk 00:53:20]} {[%emt 00:05:55]} 18. g4 {[%clk 00:49:16]}
{[%emt 00:04:58]} h6 {[%clk 00:47:33]} {[%emt 00:06:17]} 19. h4 {[%clk
00:48:27]} {[%emt 00:01:19]} Nh7 {[%clk 00:41:48]} {[%emt 00:06:15]} 20. Nd5
{[%clk 00:41:51]} {[%emt 00:07:07]} Qd8 {[%clk 00:41:53]} {[%emt 00:00:24]} 21.
Qe4 {[%clk 00:40:14]} {[%emt 00:02:07]} Nb6 {[%clk 00:40:52]} {[%emt 00:01:30]}
22. Nxe7+ {[%clk 00:32:49]} {[%emt 00:07:56]} Qxe7 {[%clk 00:39:58]} {[%emt
00:01:24]} 23. a5 {[%clk 00:33:01]} {[%emt 00:00:19]} Nf6 {[%clk 00:24:34]}
{[%emt 00:15:53]} 24. Qf3 {[%clk 00:29:21]} {[%emt 00:04:10]} Nc4 {[%clk
00:21:24]} {[%emt 00:03:40]} 25. Rd1 {[%clk 00:26:15]} {[%emt 00:03:36]} Rfd8
{[%clk 00:16:48]} {[%emt 00:05:05]} 26. g5 {[%clk 00:19:24]} {[%emt 00:07:22]}
hxg5 {[%clk 00:16:32]} {[%emt 00:00:46]} 27. hxg5 {[%clk 00:19:51]} {[%emt
00:00:02]} Nh7 {[%clk 00:15:47]} {[%emt 00:01:16]} 28. g6 {[%clk 00:15:53]}
{[%emt 00:04:28]} Qg5+ {[%clk 00:11:16]} {[%emt 00:05:01]} 29. Kh2 {[%clk
00:11:35]} {[%emt 00:04:48]} Qh4+ {[%clk 00:10:52]} {[%emt 00:00:54]} 30. Kg2
{[%clk 00:11:39]} {[%emt 00:00:25]} Qg5+ {[%clk 00:10:32]} {[%emt 00:00:50]} 31.
Kh1 {[%clk 00:09:46]} {[%emt 00:02:23]} Qh4+ {[%clk 00:10:47]} {[%emt
00:00:16]} 32. Kg2 {[%clk 00:08:01]} {[%emt 00:02:14]} Qg5+ {[%clk 00:10:49]}
{[%emt 00:00:28]} 33. Kh2 {[%clk 00:05:27]} {[%emt 00:03:04]} Qh4+ {[%clk
00:11:02]} {[%emt 00:00:17]} 34. Kg2 {[%clk 00:05:15]} {[%emt 00:00:42]} Qg5+
{[%clk 00:10:04]} {[%emt 00:00:48]} 1/2-1/2

[Event "NJSK 2023 Jeugd A"]
[Site "Almelo, Netherlands"]
[Date "2023.04.30"]
[Round "1.2"]
[White "Knol, Daniel"]
[Black "Van der Hagen, Loek"]
[Result "0-1"]
[TimeControl "90min/40moves + 30min + 30sec/move"]
[WhiteElo "1819"]
[BlackElo "2273"]

1. e4 {[%clk 01:30:43]} {[%emt 00:00:17]} g6 {[%clk 01:30:55]} {[%emt
00:00:06]} 2. d4 {[%clk 01:30:06]} {[%emt 00:01:06]} Bg7 {[%clk 01:31:19]}
{[%emt 00:00:05]} 3. Nc3 {[%clk 01:25:51]} {[%emt 00:04:46]} d6 {[%clk
01:31:44]} {[%emt 00:00:04]} 4. Be3 {[%clk 01:25:03]} {[%emt 00:01:18]} c6
{[%clk 01:31:56]} {[%emt 00:00:19]} 5. g3 {[%clk 01:20:30]} {[%emt 00:05:03]}
Nf6 {[%clk 01:31:15]} {[%emt 00:01:12]} 6. Bg2 {[%clk 01:20:52]} {[%emt
00:00:07]} Ng4 {[%clk 01:26:16]} {[%emt 00:05:29]} 7. Bc1 {[%clk 01:13:16]}
{[%emt 00:08:06]} O-O {[%clk 01:17:00]} {[%emt 00:09:46]} 8. h3 {[%clk
01:13:36]} {[%emt 00:00:10]} Nf6 {[%clk 01:17:28]} {[%emt 00:00:02]} 9. Nge2
{[%clk 01:13:56]} {[%emt 00:00:10]} Na6 {[%clk 01:15:20]} {[%emt 00:02:39]} 10.
O-O {[%clk 01:14:13]} {[%emt 00:00:12]} c5 {[%clk 01:15:28]} {[%emt 00:00:22]}
11. Be3 {[%clk 01:13:34]} {[%emt 00:01:09]} cxd4 {[%clk 01:12:45]} {[%emt
00:03:14]} 12. Nxd4 {[%clk 01:13:44]} {[%emt 00:00:19]} Nc5 {[%clk 01:10:31]}
{[%emt 00:02:44]} 13. g4 {[%clk 01:11:45]} {[%emt 00:02:29]} Bd7 {[%clk
01:09:04]} {[%emt 00:01:57]} 14. g5 {[%clk 00:51:46]} {[%emt 00:20:29]} Nh5
{[%clk 01:06:42]} {[%emt 00:02:52]} 15. h4 {[%clk 00:50:08]} {[%emt 00:02:07]}
Ne6 {[%clk 00:59:34]} {[%emt 00:07:39]} 16. Nd5 {[%clk 00:44:33]} {[%emt
00:06:05]} Nxd4 {[%clk 00:37:28]} {[%emt 00:22:36]} 17. Bxd4 {[%clk 00:45:01]}
{[%emt 00:00:02]} Bxd4 {[%clk 00:36:37]} {[%emt 00:01:21]} 18. Qxd4 {[%clk
00:45:27]} {[%emt 00:00:04]} e5 {[%clk 00:33:56]} {[%emt 00:03:11]} 19. Qb4
{[%clk 00:37:10]} {[%emt 00:08:47]} Bc6 {[%clk 00:33:10]} {[%emt 00:01:15]} 20.
Bf3 {[%clk 00:25:56]} {[%emt 00:11:45]} Bxd5 {[%clk 00:28:01]} {[%emt
00:05:39]} 21. Bxh5 {[%clk 00:26:14]} {[%emt 00:00:12]} a5 {[%clk 00:28:21]}
{[%emt 00:00:10]} 22. Qe1 {[%clk 00:25:38]} {[%emt 00:01:05]} Be6 {[%clk
00:28:10]} {[%emt 00:00:42]} 23. Bf3 {[%clk 00:25:19]} {[%emt 00:00:48]} f6
{[%clk 00:28:36]} {[%emt 00:00:05]} 24. Qe3 {[%clk 00:23:20]} {[%emt 00:02:29]}
fxg5 {[%clk 00:28:49]} {[%emt 00:00:17]} 25. hxg5 {[%clk 00:23:49]} {[%emt
00:00:01]} Rf4 {[%clk 00:29:02]} {[%emt 00:00:16]} 26. Rad1 {[%clk 00:14:48]}
{[%emt 00:09:32]} Qxg5+ {[%clk 00:29:05]} {[%emt 00:00:27]} 27. Bg2 {[%clk
00:15:13]} {[%emt 00:00:04]} Rd8 {[%clk 00:28:50]} {[%emt 00:00:46]} 28. Rd3
{[%clk 00:13:57]} {[%emt 00:01:45]} Bc4 {[%clk 00:26:54]} {[%emt 00:02:27]} 0-1

[Event "NJSK 2023 Jeugd A"]
[Site "Almelo, Netherlands"]
[Date "2023.04.30"]
[Round "1.3"]
[White "Slagboom, Leandro"]
[Black "Van Rootselaar, Rik"]
[Result "1-0"]
[TimeControl "90min/40moves + 30min + 30sec/move"]
[WhiteElo "2228"]
[BlackElo "1812"]

1. e4 {[%clk 01:30:49]} {[%emt 00:00:10]} c5 {[%clk 01:30:51]} {[%emt
00:00:10]} 2. Nf3 {[%clk 01:30:48]} {[%emt 00:00:30]} d6 {[%clk 01:31:10]}
{[%emt 00:00:11]} 3. d4 {[%clk 01:31:13]} {[%emt 00:00:05]} cxd4 {[%clk
01:31:36]} {[%emt 00:00:04]} 4. Nxd4 {[%clk 01:31:38]} {[%emt 00:00:05]} Nf6
{[%clk 01:32:01]} {[%emt 00:00:06]} 5. Nc3 {[%clk 01:32:03]} {[%emt 00:00:04]}
a6 {[%clk 01:32:27]} {[%emt 00:00:04]} 6. Be2 {[%clk 01:31:31]} {[%emt
00:01:02]} e5 {[%clk 01:31:14]} {[%emt 00:01:43]} 7. Nb3 {[%clk 01:31:48]}
{[%emt 00:00:13]} Be7 {[%clk 01:30:48]} {[%emt 00:00:55]} 8. O-O {[%clk
01:31:54]} {[%emt 00:00:25]} Qc7 {[%clk 01:27:33]} {[%emt 00:03:46]} 9. Be3
{[%clk 01:28:47]} {[%emt 00:03:36]} b5 {[%clk 01:23:52]} {[%emt 00:04:11]} 10.
a4 {[%clk 01:27:33]} {[%emt 00:01:44]} b4 {[%clk 01:22:43]} {[%emt 00:01:39]}
11. Nd5 {[%clk 01:21:15]} {[%emt 00:06:48]} Nxd5 {[%clk 01:22:57]} {[%emt
00:00:17]} 12. exd5 {[%clk 01:21:22]} {[%emt 00:00:23]} O-O {[%clk 01:16:17]}
{[%emt 00:07:09]} 13. a5 {[%clk 01:18:44]} {[%emt 00:03:09]} Nd7 {[%clk
01:12:15]} {[%emt 00:04:31]} 14. Ra4 {[%clk 01:04:47]} {[%emt 00:14:27]} Rb8
{[%clk 01:02:53]} {[%emt 00:09:53]} 15. Qd2 {[%clk 00:59:51]} {[%emt 00:05:26]}
f5 {[%clk 00:58:24]} {[%emt 00:04:58]} 16. f4 {[%clk 00:58:24]} {[%emt
00:01:57]} Nf6 {[%clk 00:51:22]} {[%emt 00:07:32]} 17. Bb6 {[%clk 00:51:19]}
{[%emt 00:07:36]} Qb7 {[%clk 00:44:45]} {[%emt 00:07:06]} 18. Rd1 {[%clk
00:46:57]} {[%emt 00:04:52]} Ne4 {[%clk 00:42:25]} {[%emt 00:02:51]} 19. Qe3
{[%clk 00:44:04]} {[%emt 00:03:22]} exf4 {[%clk 00:41:04]} {[%emt 00:01:51]} 20.
Qxf4 {[%clk 00:44:08]} {[%emt 00:00:26]} g5 {[%clk 00:34:53]} {[%emt 00:06:42]}
21. Qf1 {[%clk 00:40:59]} {[%emt 00:03:38]} Bf6 {[%clk 00:33:25]} {[%emt
00:01:58]} 22. Nd4 {[%clk 00:39:32]} {[%emt 00:01:57]} Qg7 {[%clk 00:30:35]}
{[%emt 00:03:20]} 23. Rxb4 {[%clk 00:37:30]} {[%emt 00:02:32]} g4 {[%clk
00:27:35]} {[%emt 00:03:30]} 24. Bxa6 {[%clk 00:33:45]} {[%emt 00:04:15]} Be5
{[%clk 00:23:59]} {[%emt 00:04:06]} 25. g3 {[%clk 00:25:51]} {[%emt 00:08:25]}
Bxa6 {[%clk 00:20:45]} {[%emt 00:03:44]} 26. Qxa6 {[%clk 00:26:00]} {[%emt
00:00:20]} Qh6 {[%clk 00:18:16]} {[%emt 00:02:59]} 27. Nxf5 {[%clk 00:24:08]}
{[%emt 00:02:22]} Rxf5 {[%clk 00:14:03]} {[%emt 00:04:43]} 28. Rxe4 {[%clk
00:24:17]} {[%emt 00:00:21]} Rh5 {[%clk 00:11:39]} {[%emt 00:02:54]} 29. Qe2
{[%clk 00:23:23]} {[%emt 00:01:24]} Kh8 {[%clk 00:08:47]} {[%emt 00:03:22]} 30.
Bd4 {[%clk 00:20:58]} {[%emt 00:02:55]} Bxd4+ {[%clk 00:08:52]} {[%emt
00:00:25]} 31. Rdxd4 {[%clk 00:20:52]} {[%emt 00:00:36]} Rxh2 {[%clk 00:08:12]}
{[%emt 00:01:10]} 32. Re8+ {[%clk 00:20:43]} {[%emt 00:00:39]} 1-0

[Event "NJSK 2023 Jeugd A"]
[Site "Almelo, Netherlands"]
[Date "2023.04.30"]
[Round "1.4"]
[White "Bon, Gijs"]
[Black "Achuthan, Dylan"]
[Result "0-1"]
[TimeControl "90min/40moves + 30min + 30sec/move"]
[WhiteElo "1805"]
[BlackElo "2045"]

1. e4 {[%clk 01:30:54]} {[%emt 00:00:05]} c5 {[%clk 01:29:54]} {[%emt
00:01:07]} 2. Nf3 {[%clk 01:28:53]} {[%emt 00:02:32]} Nc6 {[%clk 01:30:07]}
{[%emt 00:00:16]} 3. c3 {[%clk 01:29:08]} {[%emt 00:00:16]} Nf6 {[%clk
01:30:30]} {[%emt 00:00:06]} 4. e5 {[%clk 01:29:10]} {[%emt 00:00:27]} Nd5
{[%clk 01:30:48]} {[%emt 00:00:09]} 5. d4 {[%clk 01:29:30]} {[%emt 00:00:13]}
cxd4 {[%clk 01:31:13]} {[%emt 00:00:07]} 6. cxd4 {[%clk 01:29:56]} {[%emt
00:00:04]} d6 {[%clk 01:31:36]} {[%emt 00:00:06]} 7. Bc4 {[%clk 01:29:35]}
{[%emt 00:00:51]} Nb6 {[%clk 01:32:00]} {[%emt 00:00:07]} 8. Bb3 {[%clk
01:29:56]} {[%emt 00:00:08]} dxe5 {[%clk 01:32:23]} {[%emt 00:00:07]} 9. d5
{[%clk 01:25:47]} {[%emt 00:04:39]} Na5 {[%clk 01:27:41]} {[%emt 00:05:12]} 10.
Nc3 {[%clk 01:24:11]} {[%emt 00:02:05]} Nxb3 {[%clk 01:16:46]} {[%emt
00:11:27]} 11. Qxb3 {[%clk 01:23:54]} {[%emt 00:00:47]} e6 {[%clk 01:12:19]}
{[%emt 00:04:56]} 12. Bg5 {[%clk 00:53:24]} {[%emt 00:31:00]} Be7 {[%clk
00:55:53]} {[%emt 00:16:56]} 13. Bxe7 {[%clk 00:15:57]} {[%emt 00:37:57]} Qxe7
{[%clk 00:56:18]} {[%emt 00:00:05]} 14. Nxe5 {[%clk 00:10:20]} {[%emt
00:06:07]} O-O {[%clk 00:50:04]} {[%emt 00:06:44]} 15. O-O {[%clk 00:04:26]}
{[%emt 00:06:24]} exd5 {[%clk 00:49:05]} {[%emt 00:01:29]} 16. Nf3 {[%clk
00:04:32]} {[%emt 00:00:24]} Rd8 {[%clk 00:40:01]} {[%emt 00:09:34]} 17. Rad1
{[%clk 00:03:09]} {[%emt 00:01:53]} Qc5 {[%clk 00:34:14]} {[%emt 00:06:17]} 18.
Rd4 {[%clk 00:02:04]} {[%emt 00:01:35]} Be6 {[%clk 00:32:07]} {[%emt 00:02:37]}
19. Rfd1 {[%clk 00:02:13]} {[%emt 00:00:22]} h6 {[%clk 00:32:34]} {[%emt
00:00:03]} 20. h3 {[%clk 00:01:00]} {[%emt 00:01:42]} Rac8 {[%clk 00:27:53]}
{[%emt 00:05:11]} 21. Ne5 {[%clk 00:00:36]} {[%emt 00:00:54]} Rb8 {[%clk
00:15:16]} {[%emt 00:13:08]} 22. a3 {[%clk 00:00:31]} {[%emt 00:00:35]} Rbc8
{[%clk 00:13:39]} {[%emt 00:02:07]} 23. Qa2 {[%clk 00:00:36]} {[%emt 00:00:24]}
Rd6 {[%clk 00:11:11]} {[%emt 00:02:58]} 24. Qb1 {[%clk 00:00:36]} {[%emt
00:00:30]} Rcd8 {[%clk 00:10:18]} {[%emt 00:01:24]} 25. Qd3 {[%clk 00:00:41]}
{[%emt 00:00:25]} a6 {[%clk 00:10:03]} {[%emt 00:00:45]} 26. Qd2 {[%clk
00:00:31]} {[%emt 00:00:39]} Nc8 {[%emt 00:04:39]} 27. b4 {[%clk 00:00:31]} Qc7
{[%clk 00:06:16]} {[%emt 00:00:38]} 28. Na4 {[%clk 00:00:40]} {[%emt 00:00:21]}
Ne7 {[%clk 00:05:02]} {[%emt 00:01:44]} 29. Nc5 {[%clk 00:00:40]} {[%emt
00:00:30]} Nf5 {[%clk 00:03:41]} {[%emt 00:01:52]} 30. Rd3 {[%clk 00:00:31]}
{[%emt 00:00:39]} Bc8 {[%clk 00:02:35]} {[%emt 00:01:36]} 31. Rc1 {[%clk
00:00:32]} {[%emt 00:00:28]} Qe7 {[%clk 00:02:36]} {[%emt 00:00:30]} 32. Re1
{[%clk 00:00:46]} {[%emt 00:00:16]} Qf6 {[%clk 00:01:34]} {[%emt 00:01:31]} 33.
Ng4 {[%clk 00:00:54]} {[%emt 00:00:22]} Qg5 {[%clk 00:01:34]} {[%emt 00:00:30]}
34. f4 {[%clk 00:00:33]} {[%emt 00:00:52]} Qh4 {[%clk 00:02:03]} {[%emt
00:00:01]} 35. Ne5 {[%clk 00:00:32]} {[%emt 00:00:30]} h5 {[%clk 00:01:49]}
{[%emt 00:00:45]} 36. Nf3 {[%clk 00:00:31]} {[%emt 00:00:30]} Qf6 {[%clk
00:02:01]} {[%emt 00:00:18]} 37. Re5 {[%clk 00:00:32]} {[%emt 00:00:30]} b6
{[%clk 00:01:14]} {[%emt 00:01:17]} 38. Nb3 {[%clk 00:00:39]} {[%emt 00:00:22]}
Bb7 {[%clk 00:01:04]} {[%emt 00:00:40]} 39. Qe1 {[%clk 00:00:32]} {[%emt
00:00:37]} g6 {[%clk 00:00:47]} {[%emt 00:00:47]} 40. Kh2 {[%clk 00:00:32]}
{[%emt 00:00:30]} h4 {[%clk 00:00:37]} {[%emt 00:00:40]} 41. Nbd4 {[%clk
00:20:24]} {[%emt 00:10:38]} Ng3 {[%clk 00:30:37]} {[%emt 00:00:29]} 42. Nxh4
{[%clk 00:18:14]} {[%emt 00:02:41]} Ne4 {[%clk 00:31:06]} {[%emt 00:00:02]} 43.
Nhf3 {[%clk 00:16:10]} {[%emt 00:02:34]} Qxf4+ {[%clk 00:29:27]} {[%emt
00:02:08]} 44. Kg1 {[%clk 00:13:01]} {[%emt 00:03:39]} Rc8 {[%clk 00:21:53]}
{[%emt 00:08:05]} 45. Ne2 {[%clk 00:11:08]} {[%emt 00:02:22]} Qf6 {[%clk
00:21:56]} {[%emt 00:00:26]} 46. Qh4 {[%clk 00:08:55]} {[%emt 00:02:44]} Qxh4
{[%clk 00:16:32]} {[%emt 00:05:55]} 47. Nxh4 {[%clk 00:09:21]} {[%emt
00:00:03]} Rf6 {[%clk 00:16:21]} {[%emt 00:00:41]} 48. Re7 {[%clk 00:08:22]}
{[%emt 00:01:29]} Bc6 {[%clk 00:12:57]} {[%emt 00:03:54]} 49. Nd4 {[%clk
00:08:28]} {[%emt 00:00:24]} Ba4 {[%clk 00:13:04]} {[%emt 00:00:23]} 50. Nhf3
{[%clk 00:07:56]} {[%emt 00:01:02]} Rc1+ {[%clk 00:12:49]} {[%emt 00:00:45]} 51.
Kh2 {[%clk 00:08:17]} {[%emt 00:00:09]} Nf2 {[%clk 00:11:30]} {[%emt 00:01:47]}
52. Rde3 {[%clk 00:07:51]} {[%emt 00:00:59]} Rh1+ {[%clk 00:09:04]} {[%emt
00:02:55]} 53. Kg3 {[%clk 00:08:13]} {[%emt 00:00:07]} Ne4+ {[%clk 00:09:09]}
{[%emt 00:00:26]} 54. Kh4 {[%clk 00:06:41]} {[%emt 00:02:02]} Rf4+ {[%clk
00:04:32]} {[%emt 00:05:07]} 55. g4 {[%clk 00:07:06]} {[%emt 00:00:05]} f5
{[%clk 00:01:57]} {[%emt 00:03:05]} 56. Ne6 {[%clk 00:05:23]} {[%emt 00:02:13]}
Rxg4# {[%clk 00:01:48]} {[%emt 00:00:07]} 0-1

[Event "NJSK 2023 Jeugd A"]
[Site "Almelo, Netherlands"]
[Date "2023.04.30"]
[Round "1.5"]
[White "Groen, Jari"]
[Black "Smid, Jelle"]
[Result "0-1"]
[TimeControl "90min/40moves + 30min + 30sec/move"]
[WhiteElo "2028"]
[BlackElo "1776"]

1. e4 {[%clk 01:30:51]} {[%emt 00:00:08]} e6 {[%clk 01:30:52]} {[%emt
00:00:08]} 2. d4 {[%clk 01:31:11]} {[%emt 00:00:11]} d5 {[%clk 01:31:15]}
{[%emt 00:00:07]} 3. Nc3 {[%clk 01:31:26]} {[%emt 00:00:15]} Nf6 {[%clk
01:31:39]} {[%emt 00:00:06]} 4. e5 {[%clk 01:31:17]} {[%emt 00:00:39]} Nfd7
{[%clk 01:32:01]} {[%emt 00:00:07]} 5. f4 {[%clk 01:30:43]} {[%emt 00:01:05]}
c5 {[%clk 01:32:26]} {[%emt 00:00:05]} 6. Nf3 {[%clk 01:31:04]} {[%emt
00:00:09]} Nc6 {[%clk 01:32:50]} {[%emt 00:00:06]} 7. Be3 {[%clk 01:30:39]}
{[%emt 00:00:55]} Be7 {[%clk 01:32:02]} {[%emt 00:01:18]} 8. Qd2 {[%clk
01:27:04]} {[%emt 00:04:05]} O-O {[%clk 01:31:57]} {[%emt 00:00:34]} 9. O-O-O
{[%clk 01:17:17]} {[%emt 00:10:17]} c4 {[%clk 01:31:01]} {[%emt 00:01:27]} 10.
f5 {[%clk 01:07:15]} {[%emt 00:10:31]} b5 {[%clk 01:31:20]} {[%emt 00:00:11]}
11. fxe6 {[%clk 00:53:35]} {[%emt 00:14:11]} fxe6 {[%clk 01:31:43]} {[%emt
00:00:06]} 12. Ne2 {[%clk 00:46:55]} {[%emt 00:07:10]} b4 {[%clk 01:27:22]}
{[%emt 00:04:52]} 13. Bg5 {[%clk 00:40:32]} {[%emt 00:06:53]} c3 {[%clk
01:24:54]} {[%emt 00:02:58]} 14. Qe3 {[%clk 00:37:09]} {[%emt 00:03:52]} Rxf3
{[%clk 01:24:13]} {[%emt 00:01:11]} 15. gxf3 {[%clk 00:36:33]} {[%emt
00:01:07]} Bxg5 {[%clk 01:24:36]} {[%emt 00:00:07]} 16. f4 {[%clk 00:36:59]}
{[%emt 00:00:04]} cxb2+ {[%clk 01:24:47]} {[%emt 00:00:19]} 17. Kxb2 {[%clk
00:30:40]} {[%emt 00:06:49]} Nb6 {[%clk 01:24:01]} {[%emt 00:01:15]} 18. Nc1
{[%clk 00:30:01]} {[%emt 00:01:09]} Na5 {[%clk 01:20:35]} {[%emt 00:03:57]} 19.
Qg3 {[%clk 00:27:14]} {[%emt 00:03:16]} Na4+ {[%clk 01:18:17]} {[%emt
00:02:48]} 20. Ka1 {[%clk 00:25:51]} {[%emt 00:01:54]} Qc7 {[%clk 01:14:09]}
{[%emt 00:04:38]} 21. c4 {[%clk 00:19:11]} {[%emt 00:07:10]} Bh6 {[%clk
01:09:55]} {[%emt 00:04:43]} 22. c5 {[%clk 00:18:14]} {[%emt 00:01:28]} Nc3
{[%clk 01:09:43]} {[%emt 00:00:41]} 23. Re1 {[%clk 00:16:25]} {[%emt 00:02:19]}
Nc6 {[%clk 01:08:25]} {[%emt 00:01:48]} 24. Qe3 {[%clk 00:14:02]} {[%emt
00:02:53]} Qf7 {[%clk 00:52:20]} {[%emt 00:16:35]} 25. Nd3 {[%clk 00:13:39]}
{[%emt 00:00:53]} a5 {[%clk 00:52:01]} {[%emt 00:00:49]} 26. Be2 {[%clk
00:09:45]} {[%emt 00:04:25]} Nxe2 {[%clk 00:51:33]} {[%emt 00:00:57]} 27. Rxe2
{[%clk 00:10:01]} {[%emt 00:00:15]} Ba6 {[%clk 00:51:48]} {[%emt 00:00:15]} 28.
Rf2 {[%clk 00:06:14]} {[%emt 00:04:17]} Rb8 {[%clk 00:48:20]} {[%emt 00:03:58]}
29. Nb2 {[%clk 00:03:20]} {[%emt 00:03:24]} Bb5 {[%clk 00:48:21]} {[%emt
00:00:28]} 30. Rg1 {[%clk 00:02:33]} {[%emt 00:01:17]} a4 {[%clk 00:48:01]}
{[%emt 00:00:51]} 31. Kb1 {[%clk 00:00:51]} {[%emt 00:02:12]} Qf5+ {[%clk
00:47:37]} {[%emt 00:00:53]} 32. Kc1 {[%clk 00:00:43]} {[%emt 00:00:38]} a3
{[%clk 00:46:39]} {[%emt 00:01:29]} 33. Nd1 {[%clk 00:01:04]} {[%emt 00:00:08]}
Ba4 {[%clk 00:45:55]} {[%emt 00:01:14]} 34. Qd2 {[%clk 00:00:35]} {[%emt
00:01:00]} b3 {[%clk 00:46:06]} {[%emt 00:00:18]} 35. axb3 {[%clk 00:00:43]}
{[%emt 00:00:22]} Rxb3 {[%clk 00:45:41]} {[%emt 00:00:56]} 36. Qa2 {[%clk
00:00:33]} {[%emt 00:00:39]} Bxf4+ {[%clk 00:45:50]} {[%emt 00:00:22]} 0-1

[Event "NJSK 2023 Jeugd A"]
[Site "Almelo, Netherlands"]
[Date "2023.04.30"]
[Round "1.6"]
[White "Wierenga, Jael"]
[Black "Goudriaan, Rafael"]
[Result "1-0"]
[TimeControl "90min/40moves + 30min + 30sec/move"]
[WhiteElo "1772"]
[BlackElo "1992"]

1. d4 {[%clk 01:30:59]} d5 {[%clk 01:30:55]} {[%emt 00:00:06]} 2. Nc3 {[%clk
01:31:07]} {[%emt 00:00:22]} c6 {[%clk 01:30:49]} {[%emt 00:00:34]} 3. Bf4
{[%clk 01:31:14]} {[%emt 00:00:24]} Nf6 {[%clk 01:30:18]} {[%emt 00:01:00]} 4.
e3 {[%clk 01:30:03]} {[%emt 00:01:42]} Bf5 {[%clk 01:30:23]} {[%emt 00:00:25]}
5. Nf3 {[%clk 01:30:29]} {[%emt 00:00:05]} Nh5 {[%clk 01:28:42]} {[%emt
00:02:10]} 6. Ne5 {[%clk 01:27:44]} {[%emt 00:03:15]} Nxf4 {[%clk 01:28:59]}
{[%emt 00:00:13]} 7. exf4 {[%clk 01:28:13]} {[%emt 00:00:01]} h6 {[%clk
01:28:59]} {[%emt 00:00:30]} 8. Bd3 {[%clk 01:26:41]} {[%emt 00:02:02]} Bxd3
{[%clk 01:25:10]} {[%emt 00:04:20]} 9. Qxd3 {[%clk 01:27:10]} {[%emt 00:00:01]}
Nd7 {[%clk 01:25:17]} {[%emt 00:00:23]} 10. Ng6 {[%clk 01:25:29]} {[%emt
00:02:10]} Rg8 {[%clk 01:24:34]} {[%emt 00:01:13]} 11. O-O-O {[%clk 01:22:04]}
{[%emt 00:03:55]} Qc7 {[%clk 01:24:48]} {[%emt 00:00:15]} 12. Ne5 {[%clk
01:17:40]} {[%emt 00:04:56]} Nf6 {[%clk 01:23:22]} {[%emt 00:01:55]} 13. g3
{[%clk 01:07:19]} {[%emt 00:10:52]} e6 {[%clk 01:18:21]} {[%emt 00:05:29]} 14.
f5 {[%clk 01:02:27]} {[%emt 00:05:23]} O-O-O {[%clk 01:15:56]} {[%emt
00:02:55]} 15. fxe6 {[%clk 00:53:36]} {[%emt 00:09:20]} fxe6 {[%clk 01:16:06]}
{[%emt 00:00:19]} 16. Rhe1 {[%clk 00:51:58]} {[%emt 00:02:11]} Bd6 {[%clk
01:14:49]} {[%emt 00:01:40]} 17. Qg6 {[%clk 00:45:26]} {[%emt 00:07:08]} Bxe5
{[%clk 01:12:23]} {[%emt 00:02:56]} 18. Rxe5 {[%clk 00:42:17]} {[%emt
00:03:39]} Rde8 {[%clk 01:08:45]} {[%emt 00:04:09]} 19. Rde1 {[%clk 00:42:16]}
{[%emt 00:00:30]} Qb6 {[%clk 01:05:17]} {[%emt 00:03:59]} 20. Qd3 {[%clk
00:36:04]} {[%emt 00:06:41]} Ng4 {[%clk 00:55:06]} {[%emt 00:10:41]} 21. Rxe6
{[%clk 00:35:35]} {[%emt 00:00:59]} Rxe6 {[%clk 00:54:56]} {[%emt 00:00:40]} 22.
Rxe6 {[%clk 00:36:04]} {[%emt 00:00:02]} Nxh2 {[%clk 00:52:23]} {[%emt
00:03:03]} 23. Nxd5 {[%clk 00:32:11]} {[%emt 00:04:22]} Qa5 {[%clk 00:50:59]}
{[%emt 00:01:54]} 24. Ne7+ {[%clk 00:29:12]} {[%emt 00:03:29]} Kd7 {[%clk
00:51:28]} {[%emt 00:00:02]} 25. Re5 {[%clk 00:28:04]} {[%emt 00:01:37]} Qxa2
{[%clk 00:51:15]} {[%emt 00:00:43]} 26. Nxg8 {[%clk 00:26:51]} {[%emt
00:01:43]} Qxg8 {[%clk 00:51:08]} {[%emt 00:00:38]} 27. d5 {[%clk 00:26:28]}
{[%emt 00:00:53]} cxd5 {[%clk 00:50:57]} {[%emt 00:00:40]} 28. Rxd5+ {[%clk
00:25:28]} {[%emt 00:01:31]} Kc7 {[%clk 00:51:19]} {[%emt 00:00:08]} 29. Rd7+
{[%clk 00:24:28]} {[%emt 00:01:29]} Kc8 {[%clk 00:51:40]} {[%emt 00:00:10]} 30.
Qb5 {[%clk 00:24:05]} {[%emt 00:01:29]} 1-0